Cogmind - Beta 13 @@@ ROGUE MODE // 2024.05.19 @ 10:46:37 Player: mrwizrd Result: Destroyed by Y-45 Defender with Beam Rifle Performance ------------- Evolutions (2) 1000 Regions Visited (5) 1000 Robots Destroyed (7) 35 Value Destroyed (243) 243 Prototype IDs (23) 460 Alien Tech Used (0) 0 Bonus (300) 300 TOTAL SCORE: 3038 Bonus ------- Aligned with FarCom 300 Cogmind --------- Core Integrity 0/550 Matter 264/300 Energy 85/100 System Corruption 2% Temperature Cool (18) Movement Core (350) Ox6 Location -8/Materials Parts ------- > --- POWER (1) -------- (None) > --- PROPULSION (3) --- Aluminum Leg > --- UTILITY (5) ------ Large Storage Unit Long-range Tractor Beam > --- WEAPON (2) ------- (None) > --- INVENTORY (15) --- (None) Peak State ------------ > --- POWER ------------ Ion Engine > --- PROPULSION ------- Light Treads Aluminum Leg Aluminum Leg > --- UTILITY ---------- Small Storage Unit Medium Battery Backup Plating III > --- WEAPON ----------- Backup Laser III Longsword +1 > --- INVENTORY -------- Backup Power III Light Treads Large Storage Unit EM Pulse Gun Medium Laser Grenade Launcher [Rating: 20] Favorites ----------- Power Backup Power III Engine Backup Power III Propulsion Light Treads Treads Light Treads Leg Aluminum Leg Utility Humpback Device Seismic Detector Storage Humpback Protection Backup Plating III Weapon Backup Laser III Energy Gun Backup Laser III Ballistic Gun Heavy Assault Rifle Launcher Grenade Launcher Slashing Weapon Longsword +1 Build | -11 -10 -10 -10 -9 -8 ------- Run | Yrd Mat Min Exi Min Mat Slots Evolved 4 | . . . . . 4 Power . | . . . . . . Propulsion 1 | . . . . . 1 Utility 3 | . . . . . 3 Weapon . | . . . . . . Parts Attached 40 | 7 3 2 10 . 18 Power 4 | 1 1 . 1 . 1 Engine 4 | 1 1 . 1 . 1 Core . | . . . . . . Reactor . | . . . . . . Propulsion 11 | 2 . . 4 . 5 Treads 4 | . . . 2 . 2 Leg 7 | 2 . . 2 . 3 Wheel . | . . . . . . Hover . | . . . . . . Flight . | . . . . . . Utility 13 | 1 2 1 4 . 5 Device 3 | . . . . . 3 Storage 6 | 1 . . 3 . 2 Processor . | . . . . . . Hackware . | . . . . . . Protection 4 | . 2 1 1 . . Artifact . | . . . . . . Weapon 12 | 3 . 1 1 . 7 Energy Gun 7 | 3 . 1 . . 3 Energy Cannon . | . . . . . . Ballistic Gun 1 | . . . . . 1 Ballistic Cannon . | . . . . . . Launcher 1 | . . . . . 1 Special Weapon . | . . . . . . Impact Weapon . | . . . . . . Slashing Weapon 3 | . . . 1 . 2 Piercing Weapon . | . . . . . . Special Melee Weapon . | . . . . . . Unidentified Prototypes . | . . . . . . Parts Lost 22 | . 1 2 . . 19 Power 3 | . 1 . . . 2 Propulsion 6 | . . . . . 6 Utility 6 | . . 1 . . 5 Weapon 7 | . . 1 . . 6 Highest Loss Streak 19 | . 1 2 . . 19 To Critical Strikes . | . . . . . . Average Slot Usage (%) 87 | . 87 98 87 100 54 Engine 13 | . 11 14 14 14 4 Treads 20 | . . . 22 . 5 Leg 7 | . 28 28 5 28 9 Storage 13 | . 14 14 13 14 12 Protection 3 | . 5 14 2 14 4 Energy Gun 24 | . 28 26 25 14 5 Slashing Weapon 2 | . . . 2 14 4 Naked Turns . | . . . . . . Heaviest Build 206 | 12 13 13 206 17 24 Greatest Support 40 | 20 20 20 40 20 20 Greatest Overweight (x) 10 | 2 . . 10 . 7 Average Overweight (x) 2 | . . . 3 . . Largest Inventory Capacity 35 | 8 8 8 35 8 15 Average Capacity 27 | 7 8 8 30 8 7 Most Carried 9 | 5 7 7 9 8 7 Average Carried 6 | 2 5 5 7 8 3 Final Capacity 15 | 8 8 8 8 8 15 Final Carried 8 | 4 7 5 8 8 . Class Distribution -------------------- 70% | Hauler-Mutant 29% | Mutant Dominant Class ---------------- Mutant | -10/Materials Mutant | -10/Mines Hauler-Mutant | -10/Exiles Mutant | -9/Mines Mutant | -8/Materials Resources | -11 -10 -10 -10 -9 -8 ----------- Run | Yrd Mat Min Exi Min Mat Matter Collected 470 | 211 25 55 104 10 65 Remotely . | . . . . . . Salvage Created 265 | . 38 97 . . 130 Parts 12 | . 4 5 . . 3 Haulers Intercepted . | . . . . . . Recyclers Shooed . | . . . . . . Parts Field Recycled . | . . . . . . Retrieved Matter . | . . . . . . Parts Self-Destructed . | . . . . . . Prevented . | . . . . . . Kills | -11 -10 -10 -10 -9 -8 ------- Run | Yrd Mat Min Exi Min Mat Combat Hostiles Destroyed 4 | . . 2 . . 2 Melee 1 | . . . . . 1 Guns 2 | . . 1 . . 1 AOE 1 | . . 1 . . . Classes Destroyed 5 | . 2 1 . . 2 Recycler 1 | . . . . . 1 Operator 1 | . 1 . . . . Watcher 1 | . 1 . . . . Grunt 3 | . . 2 . . 1 Duelist 1 | . . . . . 1 Best Kill Streak 2 | . 1 2 . . 2 Combat Bots Only 2 | . . 2 . . 1 Max Kills in Single Turn 1 | . 1 1 . . 1 Gunslinging . | . . . . . . Exploded 1 | . . 1 . . . Melee 1 | . . . . . 1 Uniques/NPCs Destroyed . | . . . . . . Combat | -11 -10 -10 -10 -9 -8 -------- Run | Yrd Mat Min Exi Min Mat Hostile Shots Fired 162 | . . 13 . . 149 Missed 38 | . . 2 . . 36 Damage Taken 2295 | . 82 190 . . 2023 Core 594 | . . 38 . . 556 Absorbed by Shields . | . . . . . . Core Remaining (%) 92 | 100 . . . 84 . Volleys Fired 23 | . 3 9 . . 11 Largest 2 | . 2 2 . . 2 Hottest 90 | . 80 80 . . 90 Shots Fired 32 | . 6 10 . . 16 Gun 31 | . 6 10 . . 15 Cannon . | . . . . . . Launcher 1 | . . . . . 1 Special . | . . . . . . Kinetic 2 | . . . . . 2 Thermal 9 | . . . . . 9 Explosive 1 | . . . . . 1 Electromagnetic 20 | . 6 10 . . 4 Robot Hit Streak 4 | . 1 4 . . 3 Robot Miss Streak 3 | . 2 3 . . 3 Penetration Max . | . . . . . . Secondary Targets . | . . . . . . Shots Hit Robots 25 | . 2 7 . . 16 Core Hits 15 | . 3 2 . . 10 Critical Kills . | . . . . . . Critical Parts Destroyed . | . . . . . . Critical Strikes 1 | . . . . . 1 Burn 1 | . . . . . 1 Melee Attacks 14 | . . . . . 14 Impact . | . . . . . . Slashing 14 | . . . . . 14 Piercing . | . . . . . . Sneak Attacks . | . . . . . . Combat Hostiles . | . . . . . . Follow-up Attacks . | . . . . . . Damage Inflicted 754 | . 59 177 . . 518 Guns 263 | . 36 111 . . 116 Cannons . | . . . . . . Explosions 257 | . 23 66 . . 168 Melee 221 | . . . . . 221 Ramming 13 | . . . . . 13 Kinetic 27 | . . . . . 27 Thermal 221 | . 23 66 . . 132 Explosive 97 | . . . . . 97 Electromagnetic 175 | . 36 111 . . 28 Impact . | . . . . . . Slashing 221 | . . . . . 221 Piercing . | . . . . . . Highest Corruption 2 | . . . . . 2 Average Corruption 2 | . . . . . 2 Corruption Purged . | . . . . . . Corruption Blocked . | . . . . . . Effects 1 | . . . . . 1 Message Errors 1 | . . . . . 1 Overload Shots . | . . . . . . Overflow Damage 30 | . 1 29 . . . Projectiles . | . . . . . . Explosions 30 | . 1 29 . . . Melee . | . . . . . . Knockbacks . | . . . . . . Impact . | . . . . . . Kinetic . | . . . . . . Secondary . | . . . . . . Self-Inflicted Damage 209 | . 82 35 . . 92 Shots 4 | . 1 1 . . 2 Rammed 3 | . . . . . 3 Targets Rammed 3 | . . . . . 3 Kicked . | . . . . . . Crushed . | . . . . . . Highest Temperature 182 | . 21 111 . . 182 Average Temperature 66 | . 14 60 . . 84 Received Heat Transfer 825 | . . 87 . . 738 Siege Activations . | . . . . . . Robots Corrupted . | . . . . . . Combat Hostiles . | . . . . . . Parts Fried . | . . . . . . Impact Corruptions . | . . . . . . Robots Melted . | . . . . . . Combat Hostiles . | . . . . . . Parts Melted 2 | . . . . . 2 Heat Transferred 509 | . 50 50 . . 409 Parts Sabotaged . | . . . . . . Parts Stolen . | . . . . . . Parts Stripped . | . . . . . . Power Chain Reactions 3 | . 1 1 . . 1 Alert | -11 -10 -10 -10 -9 -8 ------- Run | Yrd Mat Min Exi Min Mat Peak Influence 69 | . 64 69 . . 45 Initial 24 | . . 24 . . . Average 14 | . 33 61 . . 6 Maximum Alert Level . | . . . . . . Low Security (%) 100 | 100 100 100 . 100 100 Level 1 . | . . . . . . Level 2 . | . . . . . . Level 3 . | . . . . . . Level 4 . | . . . . . . Level 5 . | . . . . . . High Security . | . . . . . . Max Security . | . . . . . . Squads Dispatched 2 | . . . . . 2 Investigation 1 | . . . . . 1 Extermination . | . . . . . . Reinforcement 1 | . . . . . 1 Assault . | . . . . . . Garrison . | . . . . . . Intercept . | . . . . . . Searches Triggered . | . . . . . . Construction Impeded 1 | . . . . . 1 Haulers Reinforced . | . . . . . . Active Scanning Responses . | . . . . . . Cargo Convoy Interrupts . | . . . . . . Stealth | -11 -10 -10 -10 -9 -8 --------- Run | Yrd Mat Min Exi Min Mat Distress Signals . | . . . . . . Communications Jammed . | . . . . . . Distress Signals . | . . . . . . Times Spotted 26 | . 1 2 . . 23 Peak Tracking Total 14 | . 1 2 . . 14 Tactical Retreats 1 | . . . . . 1 Traps | -11 -10 -10 -10 -9 -8 ------- Run | Yrd Mat Min Exi Min Mat Traps Triggered 1 | . . . . . 1 Indirectly . | . . . . . . Trap Hack Attempts . | . . . . . . Triggered . | . . . . . . Disarmed . | . . . . . . Reprogrammed . | . . . . . . Reused . | . . . . . . Traps Extracted . | . . . . . . Installed . | . . . . . . Triggered . | . . . . . . Machines | -11 -10 -10 -10 -9 -8 ---------- Run | Yrd Mat Min Exi Min Mat Machines Disabled 3 | . 2 1 . . . Max in Single Turn 2 | . 2 1 . . . Machines Repaired . | . . . . . . Machines Dismantled . | . . . . . . Machines Sabotaged . | . . . . . . Overloaded Fab Kills . | . . . . . . Hacking | -11 -10 -10 -10 -9 -8 --------- Run | Yrd Mat Min Exi Min Mat Machines Accessed 2 | . 1 . 1 . . Terminals 1 | . 1 . . . . Fabricators . | . . . . . . Repair Stations . | . . . . . . Recycling Units . | . . . . . . Scanalyzers . | . . . . . . Garrison Access . | . . . . . . Total Hacks 2 | . 1 . 1 . . Successful 2 | . 1 . 1 . . Failed . | . . . . . . Catastrophic . | . . . . . . Database Lockouts . | . . . . . . Manual 1 | . . . 1 . . Terminals 1 | . 1 . . . . Fabricators . | . . . . . . Repair Stations . | . . . . . . Recycling Units . | . . . . . . Scanalyzers . | . . . . . . Garrison Access . | . . . . . . Terminal Hacks 2 | . 1 . 1 . . Emergency Access Points 1 | . 1 . . . . Derelict Proto ID Bank 1 | . . . 1 . . Fabricator Hacks . | . . . . . . Repair Station Hacks . | . . . . . . Recycling Unit Hacks . | . . . . . . Scanalyzer . | . . . . . . Garrison Access Hacks . | . . . . . . Unauthorized Hacks . | . . . . . . Terminals . | . . . . . . Fabricators . | . . . . . . Repair Stations . | . . . . . . Recycling Units . | . . . . . . Scanalyzers . | . . . . . . Garrison Access . | . . . . . . Data Cores Recovered 1 | . 1 . . . . Used 1 | . 1 . . . . Hacking Detections . | . . . . . . Full Trace Events . | . . . . . . Feedback Events . | . . . . . . Feedback Blocked . | . . . . . . Robot Schematics Acquired . | . . . . . . Robots Built . | . . . . . . Authchips . | . . . . . . Time . | . . . . . . Total Robot Build Rating . | . . . . . . Part Schematics Acquired . | . . . . . . Parts Built . | . . . . . . Authchips . | . . . . . . Time . | . . . . . . Total Part Build Rating . | . . . . . . Parts Repaired . | . . . . . . Time . | . . . . . . Parts Recycled . | . . . . . . Recycled Matter . | . . . . . . Retrieved Matter . | . . . . . . Retrieved Components . | . . . . . . Parts Scanalyzed . | . . . . . . Part Schematics Acquired . | . . . . . . Parts Damaged . | . . . . . . Bothacking | -11 -10 -10 -10 -9 -8 ------------ Run | Yrd Mat Min Exi Min Mat Used RIF Installer . | . . . . . . Robots Hacked . | . . . . . . Non-combat . | . . . . . . Combat . | . . . . . . Robot Hacks Applied . | . . . . . . Relay Couplers Released . | . . . . . . Fabnet Peak Effective % . | . . . . . . Robots Rewired . | . . . . . . Allies Hacked . | . . . . . . Hacks Repelled . | . . . . . . Allies | -11 -10 -10 -10 -9 -8 -------- Run | Yrd Mat Min Exi Min Mat Total Allies . | . . . . . . Largest Group . | . . . . . . Highest-Rated Group . | . . . . . . Highest-Rated Ally . | . . . . . . Total Orders . | . . . . . . Ally Attacks . | . . . . . . Total Damage . | . . . . . . Kills . | . . . . . . Allies Corrupted . | . . . . . . Allies Melted . | . . . . . . Intel | -11 -10 -10 -10 -9 -8 ------- Run | Yrd Mat Min Exi Min Mat Robot Analysis Total . | . . . . . . Derelict Logs Recovered 1 | . . . . 1 . Drone Launches . | . . . . . . Drone Recoveries . | . . . . . . Exploration | -11 -10 -10 -10 -9 -8 ------------- Run | Yrd Mat Min Exi Min Mat Turns Passed 6893 | 136 192 87 5959 297 222 Spaces Moved 2183 | 89 148 56 1498 238 154 Core 105 | 8 . . . . 97 Treads 866 | . . . 866 . . Legs 1212 | 81 148 56 632 238 57 Wheels . | . . . . . . Hover . | . . . . . . Flight . | . . . . . . Fastest Speed 50 | 50 120 120 120 120 50 Average Speed 307 | 136 120 120 395 120 90 Slowest Speed 820 | 190 120 120 820 120 400 Overloaded Moves . | . . . . . . Propulsion Burnouts . | . . . . . . Robots Hopped . | . . . . . . Cave-ins Triggered . | . . . . . . Exploration Rate (%) 32 | 6 26 6 94 51 13 Regions Visited 5 Branch Regions 3 Pre-discovered Areas . | . . . . . . Known Exits Taken . | . . . . . . Unknown Exits Taken 5 | 1 1 1 1 1 . Scrap Searched 1 | . . . . 1 . Spaces Dug 7 | . . . . . 7 Terrain Destroyed 34 | . 16 . . . 18 Melee 7 | . . . . . 7 Projectile . | . . . . . . AOE 27 | . 16 . . . 11 Terrain Rammed . | . . . . . . Walls Destroyed . | . . . . . . Machines Disabled . | . . . . . . Actions | -11 -10 -10 -10 -9 -8 --------- Run | Yrd Mat Min Exi Min Mat Total 2302 | 100 155 66 1531 249 201 Wait 22 | . . . 9 12 1 Move 2178 | 88 147 55 1497 237 154 Hop . | . . . . . . Pick Up 16 | 5 2 . 9 . . Fast Attach 17 | 5 2 . 2 . 8 Attach 13 | 1 . 2 2 . 8 Detach 1 | . . . 1 . . Swap 10 | 1 1 . 6 . 2 Drop 4 | . . . 4 . . Fire 23 | . 3 9 . . 11 Melee 14 | . . . . . 14 Ram 3 | . . . . . 3 Kick . | . . . . . . Crush . | . . . . . . Escape Stasis . | . . . . . . Rewire 1 | . . . 1 . . Trap . | . . . . . . Miscellaneous . | . . . . . . Route ------- -11/Scrapyard -10/Materials -10/Mines -10/Exiles (discovered 2 exits: [*Min x2]) -9/Mines -8/Materials History --------- Turn | Location | Event 9 | -11/Scrapyard | Discovered new exit (range 15) 137 | -11/Scrapyard | Entered Materials 222 | -10/Materials | Discovered new exit (range 13) 310 | -10/Materials | Build established: Mutant 329 | -10/Materials | Entered Mines 372 | -10/Mines | Deemed a non-threat by the Exiles lab entrance 373 | -10/Mines | Discovered new exit (range 5) 416 | -10/Mines | Entered Exiles 445 | -10/Exiles | Discovered new exit (range 15) 472 | -10/Exiles | Met 8R-AWN 491 | -10/Exiles | Met EX-HEX 869 | -10/Exiles | Build established: Hauler-Mutant 942 | -10/Exiles | Met EX-DEC 1117 | -10/Exiles | Visited The Gauntlet 2891 | -10/Exiles | Discovered new exit (range 14) 4012 | -10/Exiles | Met EX-BIN 4135 | -10/Exiles | Aligned with FarCom system 4141 | -10/Exiles | Given EX-Vault access code 4656 | -10/Exiles | Opened EX-Vault 4706 | -10/Exiles | Found Prototype Device 4724 | -10/Exiles | Identified PSU Rigger 4769 | -10/Exiles | Found Longsword +1 4882 | -10/Exiles | Warned to stay clear of 0b10 Research branches 5707 | -10/Exiles | Build established: Mutant 6375 | -10/Exiles | Left Exiles lab with Longsword +1 6375 | -10/Exiles | Entered Mines 6572 | -9/Mines | Discovered new exit (range 15) 6588 | -9/Mines | Learned Materials machine intel 6672 | -9/Mines | Entered Materials 6672 | -8/Materials | Evolved 4 slots: Propulsion x1, Utility x3 6673 | -8/Materials | Loaded intel: 51 machine locations 6811 | -8/Materials | Core integrity fell below 50% 6851 | -8/Materials | Core integrity fell below 20% 6894 | -8/Materials | Destroyed by Y-45 Defender with Beam Rifle Last Messages --------------- Acquired 30 matter. Acquired Reaction Control System. Slammed into L-31 Rogue. Slammed into G-47 Trooper. Lgt. Treads destroyed. System corrupted by crushing effect (+2). 4NR0C6DSHP: WXSHXH1LXIH0X8WY/%